bitfinex-derivatives/quotes_ETHF0:USTF0_20250727
["timestamp","ask_amount","ask_price","bid_price","bid_amount"]
[1753607824445,2.26229,3770.2,3770.1,0.5303]
[1753607825247,0.2878,3770.4,3770.3,1.17387]
[1753607825440,0.5897,3770.4,3770.3,2.04877]
[1753607825642,1.7078,3770.4,3770.3,2.04877]
[1753607826152,1.7078,3770.4,3770.3,1.74137]
[1753607830147,1.7078,3770.4,3770.3,2.04877]
[1753607830343,0.5897,3770.4,3770.3,2.04877]
[1753607831153,0.9817,3770.4,3770.3,2.04877]
[1753607831652,1.4095,3770.4,3770.3,2.04877]
[1753607832253,1.7078,3770.4,3770.3,2.04877]
[1753607832655,1.7078,3770.4,3770.3,1.74137]
[1753607835753,1.7078,3770.4,3770.3,1.28227]
[1753607836159,1.7078,3770.4,3770.3,1.48547]
[1753607836657,1.7078,3770.4,3770.3,1.58387]
[1753607837559,2.23806,3770.4,3770.3,0.53027]
[1753607838755,1.22063,3769.9,3769.8,0.72663428]
[1753607838953,2.23813,3769.9,3769.8,0.72663428]
[1753607839356,2.23813,3769.9,3769.8,0.19629428]
[1753607839867,2.23813,3769.9,3769.8,0.72663428]
[1753607842564,2.23813,3769.9,3769.8,0.19629428]
[1753607843761,2.23813,3769.9,3769.8,0.72663428]
[1753607845460,2.23813,3769.9,3769.8,0.19629428]
[1753607846462,4.53354,3770.2,3769.1,3.73824]
[1753607846463,1.7078,3769.2,3769.1,3.73824]
[1753607846658,3.2078,3770.2,3768.8,40.0847]
[1753607846659,0.4955,3768.9,3768.8,1.11498]
[1753607846858,1.7078,3768.9,3768.8,1.11498]
[1753607847062,1.7078,3768.9,3768.8,1.62408]
[1753607847368,1.7078,3768.9,3768.8,2.09318]
[1753607847772,2.23827,3768.9,3768.8,2.09318]
[1753607847967,2.23827,3768.9,3768.8,1.78578]
[1753607848766,1.7078,3768.9,3768.8,1.78578]
[1753607848968,2.23827,3768.9,3768.8,1.78578]
[1753607849569,2.23827,3768.9,3768.8,1.68738]
[1753607850164,2.23827,3768.9,3768.8,1.98198]
[1753607851472,1.28,3768.9,3768.8,2.29288]
[1753607851668,0.9817,3768.9,3768.8,2.29288]
[1753607852270,1.4199,3768.9,3768.8,2.29288]
[1753607852469,1.7308,3768.9,3768.8,2.29288]
[1753607852670,2.26127,3768.9,3768.8,2.29288]
[1753607852876,1.7308,3768.9,3768.8,2.29288]
[1753607854476,0.53043,3769.2,3769.1,0.53044]
[1753607854677,4.5751,3769.4,3769.3,1.22611]
[1753607854975,4.886,3769.4,3769.3,1.97771]
[1753607855181,5.4807,3769.4,3769.3,1.68311]
[1753607855888,5.4807,3769.4,3769.3,1.97771]
[1753607856086,4.9503,3769.4,3769.3,1.97771]
[1753607856485,4.9503,3769.4,3769.3,2.28861]
[1753607856784,4.5121,3769.4,3769.3,2.28861]
[1753607857183,4.2012,3769.4,3769.3,2.28861]
[1753607857389,4.9503,3769.4,3769.3,2.28861]
[1753607857589,5.4807,3769.4,3769.3,1.97771]
[1753607858289,5.4807,3769.4,3769.3,0.53041]
[1753607858488,1.24004,3769.2,3769.1,0.53042]
[1753607858688,2.27294,3769.2,3769.1,0.53042]
[1753607859686,2.27294,3769.2,3769.1,1.28752]
[1753607859888,2.27294,3769.2,3769.1,1.48682]
[1753607860285,2.27294,3769.2,3769.1,1.78142]
[1753607861387,1.7425,3769.2,3769.1,1.97772]
[1753607861693,3.8025,3769.4,3769.3,2.28861]
[1753607862391,4.3329,3769.4,3769.3,2.28861]
[1753607862593,5.4807,3769.4,3769.3,1.97771]
[1753607862887,5.4807,3769.4,3769.3,1.28751]
[1753607863490,5.4807,3769.4,3769.3,1.48681]
[1753607863890,2.2729,3769.4,3769.3,1.48681]
[1753607865197,1.7425,3769.4,3769.3,2.28861]
[1753607865695,2.2729,3769.4,3769.3,2.28861]
[1753607865892,1.7425,3769.4,3769.3,2.28861]
[1753607866192,2.2729,3769.4,3769.3,2.28861]
[1753607866790,1.3043,3769.4,3769.3,2.28861]
[1753607866989,0.8357,3769.4,3769.3,2.28861]
[1753607867190,2.2729,3769.4,3769.3,2.28861]
[1753607871596,2.2729,3769.4,3769.3,1.97771]
[1753607875298,1.7425,3769.4,3769.3,2.28861]
[1753607875890,3.2078,3769.5,3769.3,1.7582]
[1753607876090,3.5131,3769.5,3769.4,1.994]
[1753607876295,3.5131,3769.5,3769.4,2.2888]
[1753607876495,3.8025,3769.5,3769.4,2.2888]
[1753607877400,3.5131,3769.5,3769.4,2.2888]
[1753607877701,0.2993,3770.0,3769.9,1.23123]
[1753607877900,0.6033,3770.0,3769.9,2.26003]
[1753607878102,0.9996,3770.0,3769.9,2.26003]
[1753607878295,1.4439,3770.0,3769.9,2.26003]
[1753607879003,0.9996,3770.0,3769.9,2.26003]
[1753607879298,3.2078,3770.1,3770.0,1.23121]
[1753607879602,3.5071,3770.1,3770.0,2.26001]
[1753607879998,3.8111,3770.1,3770.0,2.26001]
[1753607880199,4.0076,3770.1,3770.0,2.26001]
[1753607880395,4.6517,3770.1,3770.0,2.26001]
[1753607880900,4.9568,3770.1,3770.0,2.26001]
[1753607881603,5.4871,3770.1,3770.0,2.26001]
[1753607882404,2.2793,3770.1,3770.0,2.26001]
[1753607883095,1.749,3770.1,3770.0,2.26001]
[1753607884405,0.6033,3770.1,3770.0,2.26001]
[1753607884601,0.7998,3770.1,3770.0,2.26001]
[1753607884800,0.9996,3770.1,3770.0,2.26001]
[1753607885093,1.749,3770.1,3770.0,1.94781]
[1753607885294,2.2793,3770.1,3770.0,0.53031]
[1753607888709,1.23178,3769.7,3769.6,1.03054]
[1753607888909,2.27938,3769.7,3769.6,0.53034]
[1753607889510,2.27938,3769.7,3769.6,0.95364]
[1753607889907,2.27938,3769.7,3769.6,1.24534]
[1753607890511,2.27938,3769.7,3769.6,1.45384]
[1753607891712,2.27938,3769.7,3769.6,2.26004]
[1753607892512,1.749,3769.7,3769.6,2.26004]
[1753607892907,2.27936,3769.7,3769.6,2.26004]
[1753607893308,1.749,3769.7,3769.6,2.26004]
[1753607893504,2.27936,3769.7,3769.6,2.26004]
[1753607895012,2.27936,3769.7,3769.6,1.65454]
[1753607895212,2.27936,3769.7,3769.6,1.45384]
[1753607895511,2.27936,3769.7,3769.6,1.24534]
[1753607895711,2.27936,3769.7,3769.6,0.53034]
[1753607895912,3.2078,3769.8,3769.0,0.7025]
[1753607895913,0.73024,3769.1,3769.0,0.7025]
[1753607896117,2.27944,3769.1,3769.0,1.52464]
[1753607896313,2.27944,3769.1,3769.0,1.83684]
[1753607896512,2.27944,3769.1,3769.0,2.26014]
[1753607898412,1.749,3769.1,3769.0,2.26014]
[1753607899221,2.27944,3769.1,3769.0,2.26014]
[1753607901019,2.27944,3769.1,3769.0,1.94794]
[1753607903330,2.27944,3769.1,3769.0,2.26014]
[1753607903615,2.27944,3769.1,3769.0,1.94794]
[1753607903922,2.27944,3769.1,3769.0,0.53045]
[1753607904511,1.23187,3769.0,3768.9,1.03066]
[1753607904719,2.27947,3769.0,3768.9,0.715]
[1753607904915,2.27949,3768.9,3768.8,0.53047]
[1753607905217,2.27949,3768.9,3768.8,1.74727]
[1753607905421,2.27949,3768.9,3768.8,1.94797]
[1753607906923,1.749,3768.9,3768.8,2.26017]
[1753607907122,2.27947,3768.9,3768.8,2.26017]
[1753607907318,1.749,3768.9,3768.8,2.26017]
[1753607908226,2.27947,3768.9,3768.8,1.94797]
[1753607909023,1.749,3768.9,3768.8,2.26067]
[1753607909919,2.27947,3768.9,3768.8,2.26067]
[1753607910421,1.749,3768.9,3768.8,2.26067]
[1753607910820,2.27947,3768.9,3768.8,2.26067]
[1753607911321,4.53382,3769.4,3769.1,1.66033]
[1753607911322,2.26665,3769.2,3769.1,1.66033]
[1753607911522,2.26665,3769.2,3769.1,2.25893]
[1753607911722,2.26665,3769.2,3769.1,1.94623]
[1753607911926,2.26665,3769.2,3769.1,1.66033]
[1753607912726,2.26665,3769.2,3769.1,1.94623]
[1753607913229,2.26665,3769.2,3769.1,2.25893]
[1753607914728,1.7362,3769.2,3769.1,2.25893]
[1753607915327,3.4967,3769.4,3769.3,1.02161]
[1753607915528,4.944,3769.4,3769.3,2.25891]
[1753607916529,1.7362,3769.4,3769.3,2.25891]
[1753607919934,1.2699,3769.4,3769.3,2.25891]
[1753607920133,0.9847,3769.4,3769.3,2.25891]
[1753607920735,1.451,3769.4,3769.3,2.25891]
[1753607920937,1.7362,3769.4,3769.3,2.25891]
[1753607921436,1.7362,3769.4,3769.3,1.94621]
[1753607921735,2.2666,3769.4,3769.3,1.94621]
[1753607922430,1.7362,3769.4,3769.3,2.25891]
[1753607922929,0.2889,3769.4,3769.3,2.25891]
[1753607923330,0.6006,3769.4,3769.3,2.25891]
[1753607923838,1.7362,3769.4,3769.3,2.25891]
[1753607924139,1.7362,3769.4,3769.3,1.94621]
[1753607924338,2.2666,3769.4,3769.3,0.53041]
[1753607925040,2.2666,3769.4,3769.3,0.97461]
[1753607925436,0.53043,3769.3,3769.2,0.53042]
[1753607925636,2.26663,3769.3,3769.2,0.53042]
[1753607926039,2.26663,3769.3,3769.2,0.97462]
[1753607926239,2.26663,3769.3,3769.2,0.53042]
[1753607926838,2.26663,3769.3,3769.2,1.46582]
[1753607927038,2.26663,3769.3,3769.2,1.94622]
[1753607929548,2.26663,3769.3,3769.2,1.66032]
[1753607929846,2.26663,3769.3,3769.2,1.46582]
[1753607930342,1.7362,3769.3,3769.1,0.53044]
[1753607930549,2.26663,3769.2,3769.1,0.53044]
[1753607930938,0.1888,3768.8,3768.7,0.2859]
[1753607931138,1.7362,3768.8,3768.7,1.3076]
[1753607931340,1.7362,3768.8,3768.7,1.5021]
[1753607931541,1.7362,3768.8,3768.7,1.9463]
[1753607932440,1.7362,3768.8,3768.7,2.259]
[1753607933344,2.26668,3768.8,3768.7,1.9463]
[1753607934646,1.7362,3768.8,3768.7,1.9463]
[1753607934849,1.7362,3768.8,3768.7,2.259]
[1753607935949,3.2078,3769.4,3769.3,1.21611]
[1753607936150,1.19967,3769.6,3769.5,1.21608]
[1753607936346,2.26657,3769.6,3769.5,2.25888]
[1753607936544,1.7362,3769.6,3769.5,2.25888]
[1753607937144,0.2889,3769.6,3769.5,2.25888]
[1753607937351,0.6006,3769.8,3769.7,1.21606]
[1753607937551,4.6293,3770.2,3770.1,2.3017]
[1753607937751,3.8965,3770.2,3770.1,2.3017]
[1753607937944,0.6887,3770.2,3770.1,2.3017]
[1753607938145,1.7151,3770.2,3770.1,2.3017]
[1753607940352,2.24539,3770.2,3770.1,2.3017]
[1753607940549,0.5303,3770.1,3769.8,1.4649]
[1753607940748,1.7096,3770.1,3770.0,1.23521]
[1753607940947,1.2805,3770.1,3770.0,2.30141]
[1753607941252,0.2936,3770.3,3770.2,1.23519]
[1753607941444,0.5944,3770.3,3770.2,2.30139]
[1753607941653,0.7842,3770.3,3770.2,2.30139]
[1753607943460,0.9768,3770.3,3770.2,2.30139]
[1753607944352,1.4059,3770.3,3770.2,2.30139]
[1753607945259,1.4059,3770.3,3769.8,0.95303]
[1753607945459,1.1152,3770.3,3770.2,0.62999]
[1753607946160,1.7096,3770.3,3770.2,0.62999]
[1753607946661,2.23987,3770.3,3770.2,0.62999]
[1753607947361,1.7096,3770.3,3770.2,0.69229]
[1753607947952,2.23987,3770.3,3770.2,0.69229]
[1753607948462,1.7096,3770.3,3770.2,0.69229]
[1753607949065,1.2805,3770.3,3770.2,0.69229]
[1753607949555,1.7096,3770.3,3770.2,0.69229]
[1753607950265,2.23987,3770.3,3770.2,0.69229]
[1753607955070,1.7096,3770.3,3770.2,0.69229]
[1753607955569,2.23987,3770.3,3770.2,0.69229]
[1753607957272,1.7096,3770.3,3770.2,0.69229]
[1753607957770,2.23987,3770.3,3770.2,0.69229]
[1753607960072,2.23987,3770.3,3770.2,0.59259]
[1753607961373,2.23987,3770.3,3770.2,0.53029]
[1753607962277,2.23987,3770.3,3770.2,0.59259]
[1753607965683,2.23987,3770.3,3770.2,0.69229]
[1753607969384,1.7096,3770.3,3770.2,0.69229]
[1753607969786,0.9768,3770.3,3770.2,0.69229]
[1753607970185,1.4304,3770.3,3770.2,0.69229]
[1753607970691,1.7407,3770.3,3770.2,0.69229]
[1753607984098,2.27097,3770.3,3770.2,0.69229]
[1753607984601,1.7407,3770.3,3770.2,0.69229]
[1753607985100,2.27097,3770.3,3770.2,0.69229]
[1753607985803,1.7407,3770.3,3770.2,0.69229]
[1753607986804,2.27097,3770.3,3770.2,0.69229]
[1753607987494,1.7407,3770.3,3770.2,0.69229]
[1753607987893,2.27097,3770.3,3770.2,0.69229]
[1753607988098,3.2078,3770.7,3769.9,1.3258]
[1753607988099,0.9996,3770.0,3769.9,0.0627]
[1753607988301,0.2964,3770.0,3769.9,0.69331]
[1753607990605,0.5859,3770.0,3769.9,0.69331]
[1753607991200,3.2078,3770.7,3769.9,0.69331]
[1753607991201,0.2895,3770.7,3770.6,0.69323]
[1753607991505,0.9492,3771.0,3770.9,0.53019]
[1753607991703,0.792,3771.0,3770.9,0.69319]
[1753607992008,0.2964,3771.0,3770.9,0.69319]
[1753607992403,1.4532,3771.6,3771.5,0.8498]
[1753607992609,2.23973747,3771.6,3771.5,1.0537]
[1753607992801,2.23973747,3771.6,3771.5,0.897]
[1753607994305,2.53613747,3771.6,3771.5,0.897]
[1753607995510,1.7496,3771.6,3771.5,0.897]
[1753607996504,1.7496,3771.6,3771.5,0.5928]
[1753607998626,1.7496,3771.6,3771.5,0.7967]
[1753607999022,2.27969,3771.6,3771.5,0.7967]
[1753607999318,3.2078,3771.7,3771.1,21.024]
[1753607999319,1.0505,3771.2,3771.1,21.024]
[1753607999625,2.27995,3771.2,3771.1,0.53014]
[1753608000227,1.78606,3771.1,3771.0,21.024]
[1753608000427,2.27996,3771.1,3771.0,21.55417]
[1753608000724,1.7498,3771.1,3771.0,21.82027]
[1753608000920,1.7498,3771.1,3771.0,0.89607]
[1753608002328,1.7498,3771.1,3771.0,0.53017]
[1753608003326,1.7498,3771.1,3771.0,0.79627]
[1753608003521,1.7498,3771.1,3771.0,0.89607]
[1753608004518,2.27996,3771.1,3771.0,0.89607]
[1753608005825,2.27996,3771.1,3771.0,0.79627]
[1753608007023,0.53017,3771.0,3770.6,3.2078]
[1753608007224,1.7498,3770.7,3770.6,4.10443]
[1753608007525,0.1897,3770.4,3770.3,0.2663]
[1753608007723,2.28006,3770.4,3770.3,21.55527]
[1753608008222,2.28006,3770.4,3770.3,21.025]
[1753608008628,0.92489,3770.2,3770.1,3.2078]
[1753608008929,2.28009,3770.2,3770.1,24.76709]
[1753608009630,1.7498,3770.2,3770.1,24.76709]
[1753608010729,1.7498,3770.2,3770.1,21.55929]
[1753608011128,2.28009,3770.2,3770.1,21.55929]
[1753608011730,1.7498,3770.2,3770.1,21.55929]
[1753608013131,1.7498,3770.2,3770.1,21.62189]
[1753608013331,1.7498,3770.2,3769.7,3.2078]
[1753608013522,1.22963,3770.0,3769.9,0.53031]
[1753608013829,2.28013,3770.0,3769.9,0.53031]
[1753608017433,2.28013,3770.0,3769.9,0.59291]
[1753608018629,1.7498,3770.0,3769.9,0.59291]
[1753608018931,1.7498,3770.0,3769.9,0.79661]
[1753608019336,1.7498,3770.0,3769.9,0.89671]
[1753608020635,1.7498,3770.0,3769.9,1.05331]
[1753608021536,1.7498,3770.0,3769.9,0.89671]
[1753608022740,2.28011,3770.0,3769.9,0.79661]
[1753608023039,2.28011,3770.0,3769.9,21.57631]
[1753608023234,2.28011,3770.0,3769.9,21.046]
[1753608023434,0.6993,3769.8,3769.3,0.0626]
[1753608023639,1.99839,3769.6,3769.5,0.53037]
[1753608024030,0.72008,3769.5,3769.4,21.051]
[1753608024233,2.28018,3769.5,3769.4,21.051]
[1753608024634,2.28018,3769.5,3769.4,0.5304]
[1753608024838,0.6993,3769.4,3769.2,21.059]
[1753608025143,1.22971,3769.3,3769.2,0.53042]
[1753608025343,2.28021,3769.3,3769.2,0.53042]
[1753608027140,1.7498,3769.3,3769.2,0.53042]
[1753608027936,2.28021,3769.3,3769.2,0.53042]
[1753608028136,1.7498,3769.3,3769.2,0.53042]
[1753608029542,1.7498,3769.3,3769.2,0.59322]
[1753608029937,0.586,3769.3,3769.2,1.04592]
[1753608036543,1.4458,3770.3,3770.2,0.78859]
[1753608036750,1.4458,3770.3,3770.2,0.53029]
[1753608038642,1.7362,3770.3,3770.2,0.53029]
[1753608040251,2.26647,3770.3,3770.2,0.53029]
[1753608040447,1.7362,3770.3,3770.2,0.53029]
[1753608041353,2.26647,3770.3,3770.2,0.53029]
[1753608041553,1.7362,3770.3,3770.2,0.53029]
[1753608041746,2.26647,3770.3,3770.2,0.53029]
[1753608042253,1.7362,3770.3,3770.2,0.53029]
[1753608043954,2.26647,3770.3,3770.2,0.53029]
[1753608044654,1.7362,3770.3,3770.2,0.53029]
[1753608044856,1.7362,3770.3,3770.2,0.72579]
[1753608045158,1.7362,3770.3,3770.2,0.78859]
[1753608046353,2.26647,3770.3,3770.2,0.78859]
[1753608046657,1.7362,3770.3,3770.2,0.78859]
[1753608048252,2.26647,3770.3,3770.2,0.78859]
[1753608048760,2.26647,3770.3,3770.2,0.72579]
[1753608049252,1.7362,3770.3,3770.0,0.3507]
[1753608049457,1.7362,3770.1,3770.0,0.7886]
[1753608049958,2.2665,3770.1,3770.0,0.7886]
[1753608051454,2.2665,3770.1,3770.0,0.5303]
[1753608052454,0.6971,3769.7,3769.6,21.2953]
[1753608052654,1.7362,3769.7,3769.6,21.2953]
[1753608052861,1.7362,3769.7,3769.6,21.5832]
[1753608053359,2.26656,3769.7,3769.6,22.11357]
[1753608054260,2.26656,3769.7,3769.6,0.78867]
[1753608054457,1.7362,3769.7,3769.6,22.22107]
[1753608054761,0.2926,3769.7,3769.6,22.22107]
[1753608054958,2.26651,3770.1,3770.0,0.296]
[1753608055261,2.26651,3770.1,3770.0,0.6467]
[1753608055861,2.26651,3770.1,3770.0,1.17699]
[1753608056756,0.72756,3769.8,3769.7,0.53035]
[1753608056963,1.2275,3769.6,3769.5,0.53036]
[1753608057158,1.0303,3769.4,3769.3,21.7729]
[1753608057461,2.2666,3769.4,3769.3,21.7729]
[1753608058357,1.7362,3769.4,3769.3,22.1456]
[1753608058562,1.7362,3769.4,3769.3,22.2465]
[1753608060263,2.2666,3769.4,3769.3,22.2465]
[1753608063364,1.7362,3769.4,3769.3,22.2465]
[1753608063865,2.2666,3769.4,3769.3,22.2465]
[1753608064460,1.7362,3769.4,3769.3,22.2465]
[1753608065468,2.2666,3769.4,3769.3,22.2465]
[1753608065868,2.2666,3769.4,3769.3,21.836]
[1753608066360,2.2666,3769.4,3769.3,22.1456]
[1753608066669,1.7362,3769.4,3769.3,22.2465]
[1753608067159,2.2666,3769.4,3769.3,22.2465]
[1753608068468,1.7362,3769.4,3769.3,22.2465]
[1753608068865,2.2666,3769.4,3769.3,22.2465]
[1753608069065,1.7362,3769.4,3769.3,22.2465]
[1753608076572,2.2666,3769.4,3769.3,22.2465]
[1753608077371,1.7362,3769.4,3769.3,22.2395]
[1753608077969,2.2666,3769.4,3769.3,22.2395]
[1753608078473,2.2666,3769.4,3769.3,21.92991]
[1753608079273,2.2666,3769.4,3769.3,21.82901]
[1753608081177,2.28043,3769.2,3769.1,0.72094]
[1753608081473,2.28043,3769.2,3769.1,21.75694]
[1753608082075,2.28043,3769.2,3769.1,21.81974]
[1753608083477,2.28043,3769.2,3769.1,22.12934]
[1753608085179,2.28043,3769.2,3769.1,21.81974]
[1753608085480,2.28043,3769.2,3769.1,21.56744]
[1753608086476,2.28043,3769.2,3769.1,21.037]
[1753608087084,1.2319,3768.8,3768.7,0.1905]
[1753608087272,1.2319,3768.8,3768.7,21.2275]
[1753608087678,2.2848,3768.8,3768.7,21.5871]
[1753608088174,2.2848,3768.8,3768.7,22.1176]
[1753608088985,1.7543,3768.8,3768.7,22.1176]
[1753608091892,1.7543,3768.8,3768.7,22.2185]
[1753608092087,0.4446,3769.0,3768.9,0.53047]
[1753608092287,0.2997,3769.0,3768.9,1.18397]
[1753608092489,1.2535,3769.0,3768.9,1.18397]
[1753608092791,1.7583,3769.0,3768.9,1.18397]
[1753608093293,1.7583,3769.0,3768.9,22.22297]
[1753608099201,0.7532,3769.3,3769.2,0.53043]
[1753608099502,0.2006,3769.8,3769.5,0.0631]
[1753608099699,1.15,3770.0,3769.9,0.82423]
[1753608099898,1.4586,3770.0,3769.9,1.18383]
[1753608100303,1.7583,3770.0,3769.9,1.18383]
[1753608101203,2.28861,3770.0,3769.9,1.18383]
[1753608101400,0.7054,3769.8,3769.7,21.039]
[1753608101605,1.7583,3769.8,3769.7,21.56936]
[1753608101799,5.49644,3769.8,3769.7,0.53036]
[1753608101998,1.7583,3769.5,3769.4,0.53038]
[1753608102197,1.7583,3769.5,3769.4,0.72338]
[1753608102397,1.7583,3769.5,3769.4,1.18388]
[1753608105704,1.7583,3769.5,3769.4,0.78648]
[1753608106804,2.28868,3769.5,3769.4,0.72338]
[1753608107012,2.28868,3769.5,3769.4,0.53038]
[1753608107799,1.03521,3769.4,3769.3,0.5304]
[1753608108103,2.28871,3769.4,3769.3,0.5304]
[1753608109005,1.7583,3769.1,3768.7,0.2965]
[1753608109207,2.28879,3768.9,3768.8,21.82357]
[1753608110205,2.28879,3768.9,3768.8,22.12007]
[1753608112408,2.28879,3768.9,3768.8,21.037]
[1753608112603,2.28879,3768.9,3768.8,21.56748]
[1753608113104,2.28879,3768.9,3768.8,21.82358]
[1753608114308,2.28879,3768.9,3768.8,0.72348]
[1753608115407,2.28879,3768.9,3768.8,0.53048]
[1753608116209,2.28879,3768.9,3768.8,0.72348]
[1753608116406,2.28879,3768.9,3768.8,0.78658]
[1753608116611,2.28879,3768.9,3768.8,1.08308]
[1753608117210,2.28879,3768.9,3768.8,1.18398]
[1753608120703,2.28879,3768.9,3768.8,1.08308]
[1753608120906,2.28879,3768.9,3768.8,0.193]
[1753608121103,0.9243,3768.7,3768.6,21.8245]
[1753608121308,2.3135,3768.7,3768.6,21.8245]
[1753608121713,2.3135,3768.7,3768.6,0.255]
[1753608121907,2.3135,3768.7,3768.6,0.53051]
[1753608123006,2.3135,3768.7,3768.6,0.72261]
[1753608123211,1.783,3768.7,3768.6,1.08801]
[1753608123411,1.783,3768.7,3768.6,1.18871]
[1753608123812,1.5856,3768.7,3768.6,1.18871]
[1753608124112,0.8103,3768.7,3768.6,1.18871]
[1753608124308,1.2788,3768.7,3768.6,1.18871]
[1753608124708,1.783,3768.7,3768.6,1.18871]
[1753608125516,2.3135,3768.7,3768.6,1.18871]
[1753608126014,1.783,3768.7,3768.6,1.18871]
[1753608127115,2.3135,3768.7,3768.6,1.18871]
[1753608127413,1.783,3768.7,3768.6,1.18871]
[1753608128918,0.7006,3769.1,3769.0,0.72254]
[1753608129108,0.7006,3769.1,3769.0,0.78544]
[1753608129417,2.31347,3769.1,3769.0,0.78544]
[1753608130013,2.31347,3769.1,3769.0,0.72254]
[1753608130720,2.31347,3769.1,3769.0,0.1921]
[1753608130920,1.23105,3769.0,3768.9,0.53046]
[1753608131116,0.3938,3768.7,3768.6,0.1921]
[1753608131317,2.31352,3768.7,3768.6,0.72258]
[1753608131722,2.31352,3768.7,3768.6,0.78548]
[1753608135322,2.31352,3768.7,3768.6,1.08798]
[1753608135825,2.31352,3768.7,3768.6,1.18868]
[1753608136226,1.783,3768.7,3768.6,1.18868]
[1753608136426,2.3135,3768.7,3768.6,1.18868]
[1753608136721,0.53055,3768.4,3768.3,0.0629]
[1753608136926,2.31355,3768.4,3768.3,0.1921]
[1753608137625,1.23115,3768.3,3768.2,0.54913626]
[1753608137925,2.31355,3768.3,3768.2,0.74123626]
[1753608138128,2.31355,3768.3,3768.2,0.80413626]
[1753608141029,2.31355,3768.3,3768.2,1.10663626]
[1753608141724,0.7717,3768.6,3768.5,0.53052]
[1753608141929,1.0824,3768.6,3768.5,1.18502]
[1753608142224,1.783,3768.6,3768.5,1.18502]
[1753608142426,1.69605,3768.4,3768.3,0.53054]
[1753608142629,2.31355,3768.4,3768.3,0.53054]
[1753608142826,0.53055,3768.3,3768.2,0.61063626]
[1753608143030,2.31355,3768.3,3768.2,0.80273626]
[1753608143830,2.31355,3768.3,3768.2,1.10523626]
[1753608144131,2.31355,3768.3,3768.2,0.80273626]
[1753608144630,5.52135,3768.3,3768.2,0.01857626]
[1753608145830,5.52135,3768.3,3768.2,0.54914626]
[1753608147431,5.52135,3768.3,3768.2,0.80274626]
[1753608148932,5.52135,3768.3,3768.2,1.09104626]
[1753608149825,5.52135,3768.3,3768.2,0.80274626]
[1753608150732,2.31355,3768.3,3768.2,0.80274626]
[1753608150933,2.31355,3768.3,3768.2,1.09104626]
[1753608152031,2.31355,3768.3,3768.2,1.19164626]
[1753608152835,0.5071,3768.3,3768.2,1.19164626]
[1753608153034,0.3107,3768.3,3768.2,1.19164626]
[1753608154934,1.2117,3768.8,3768.7,0.8325]
[1753608155234,1.4943,3768.8,3768.7,1.1837]
[1753608155447,3.2078,3768.9,3768.8,1.18368]
[1753608156147,3.4904,3768.9,3768.8,1.18368]
[1753608156642,0.2826,3768.9,3768.8,1.18368]
[1753608156936,3.2078,3769.3,3769.2,0.83243]
[1753608157135,3.4904,3769.3,3769.2,1.18363]
[1753608157335,3.9837,3769.3,3769.2,1.18363]
[1753608157535,4.7021,3769.3,3769.2,1.18363]
[1753608157732,4.8942,3769.3,3769.2,1.18363]
[1753608158035,1.6864,3769.3,3769.2,1.18363]
[1753608167448,2.21681,3769.3,3769.2,1.18363]
[1753608167649,1.6864,3769.3,3769.2,1.18363]
[1753608168253,0.4794,3769.3,3769.2,1.18363]
[1753608168448,0.2826,3769.5,3769.4,0.8324]
[1753608168749,0.2826,3769.5,3769.4,1.1836]
[1753608169150,0.5791,3769.5,3769.4,1.1836]
[1753608169349,1.0142,3769.5,3769.4,1.1836]
[1753608170352,1.211,3769.5,3769.4,1.1836]
[1753608171146,0.2826,3769.5,3769.4,1.1836]
[1753608173957,0.5791,3769.5,3769.4,1.1836]
[1753608174554,1.0142,3769.5,3769.4,1.1836]
[1753608175057,1.6864,3769.5,3769.4,1.1836]
[1753608178272,2.21678,3769.5,3769.4,1.1836]
[1753608178667,0.53038,3769.5,3769.4,1.1836]
[1753608178867,1.7594,3769.7,3769.6,1.19805]
[1753608179270,1.2537,3770.0,3769.9,0.83833]
[1753608179570,1.2537,3770.3,3770.2,0.1]
[1753608179768,3.2078,3770.6,3770.3,0.2972]
[1753608179972,2.28961,3770.8,3770.7,0.3705]
[1753608180271,2.2896,3770.8,3770.7,1.19792]
[1753608181467,1.02795,3770.5,3770.4,0.73824]
[1753608181673,2.28965,3770.5,3770.4,1.09794]
[1753608182676,1.7594,3770.5,3770.4,1.09794]
[1753608182868,1.7594,3770.5,3770.4,1.19794]
[1753608185368,2.28964,3770.5,3770.4,1.19794]
[1753608185568,1.7594,3770.5,3770.4,1.19794]
[1753608186874,2.28964,3770.5,3770.4,1.19794]
[1753608187573,1.7594,3770.5,3770.4,1.19794]
[1753608187871,2.28964,3770.5,3770.4,1.19794]
[1753608188375,1.7594,3770.5,3770.4,1.19794]
[1753608190084,2.28964,3770.5,3770.4,1.19794]
[1753608191579,1.7594,3770.5,3770.4,1.19794]
[1753608193372,0.3059,3770.7,3770.6,0.53023]
[1753608193580,0.6058,3770.7,3770.6,1.19793]
[1753608195575,0.5122,3771.3,3771.2,0.83815]
[1753608195881,0.6058,3771.7,3771.6,0.6677]
[1753608196188,0.6058,3771.7,3771.6,1.19779]
[1753608196483,1.7594,3771.7,3771.6,1.19779]
[1753608209185,2.28948,3771.7,3771.6,1.19779]
[1753608212787,0.6991,3771.5,3771.4,0.0615]
[1753608212989,2.26662,3771.5,3771.4,0.5916]